bitfinex/quotes_ETHUSD_20220219
["timestamp","ask_amount","ask_price","bid_price","bid_amount"]
[1645279651365,0.94463827,2740.4,2740.0,1.28317275]
[1645279651567,0.00307692,2740.3,2740.0,0.00207033]
[1645279651966,0.8835981,2740.3,2740.0,0.00207033]
[1645279652165,0.25309767,2740.2,2740.0,0.00207033]
[1645279652767,0.25608974,2740.2,2740.0,0.00207033]
[1645279652968,0.25608974,2740.2,2740.0,1.28322405]
[1645279653166,0.25608974,2740.2,2740.0,0.00207033]
[1645279653804,0.25309767,2740.2,2740.0,0.00207033]
[1645279654003,0.2560899,2740.2,2740.0,0.00207033]
[1645279654702,0.2560899,2740.2,2740.0,1.28380788]
[1645279654903,0.25309767,2740.2,2740.0,0.00207033]
[1645279655103,0.2560899,2740.2,2740.0,0.00207033]
[1645279656104,0.25309767,2740.2,2740.0,0.00207033]
[1645279656505,0.25602413,2740.2,2740.0,1.28401051]
[1645279656703,0.25602413,2740.2,2740.0,0.00207033]
[1645279657454,0.25309767,2740.2,2740.0,0.00207033]
[1645279657653,0.25602697,2740.2,2740.0,0.00207033]
[1645279657853,0.25602697,2740.2,2740.0,1.28398267]
[1645279658055,0.25602697,2740.2,2740.0,0.00207033]
[1645279658261,0.25602697,2740.2,2740.0,1.28405059]
[1645279658458,0.25602697,2740.2,2740.0,0.00207033]
[1645279658655,0.25309767,2740.2,2740.0,0.00207033]
[1645279658862,0.25602697,2740.2,2740.0,1.28446496]
[1645279659158,0.25602697,2740.2,2740.0,0.00207033]
[1645279659558,0.25602697,2740.2,2740.0,1.28441413]
[1645279659758,0.25309767,2740.2,2740.0,0.00207033]
[1645279659959,0.25604177,2740.2,2740.0,0.00207033]
[1645279660160,0.25604177,2740.2,2740.0,1.28451944]
[1645279660359,0.25604177,2740.2,2740.0,0.00207033]
[1645279661004,0.25309767,2740.2,2740.0,0.00207033]
[1645279661204,0.25604378,2740.2,2739.9,1.23466481]
[1645279661411,0.63046482,2740.0,2739.5,0.00462351]
[1645279662204,0.63046482,2740.0,2739.5,0.00256124]
[1645279662404,0.63046482,2740.0,2739.5,0.00462351]
[1645279662808,0.00294592,2740.1,2739.5,0.00462351]
[1645279663507,0.6915406,2740.2,2739.5,0.00462351]
[1645279663508,0.6915406,2740.2,2739.5,0.00256124]
[1645279663708,0.00294264,2740.1,2739.5,0.00461241]
[1645279663911,0.61611825,2740.1,2739.5,0.00461241]
[1645279664507,1.30471621,2740.1,2739.5,0.00256124]
[1645279664754,1.30765823,2740.1,2739.5,0.00461241]
[1645279665655,0.00294202,2740.1,2739.5,0.00461241]
[1645279665854,0.6915406,2740.2,2739.5,0.00256124]
[1645279666157,0.00294202,2740.1,2739.5,0.00461241]
[1645279666954,0.6915406,2740.2,2739.5,0.00256124]
[1645279667453,0.00294276,2740.1,2739.5,0.00461491]
[1645279668255,0.6915406,2740.2,2739.5,0.00256124]
[1645279668505,0.00294292,2740.1,2739.5,0.00461491]
[1645279668907,0.00294292,2740.1,2739.9,0.54751204]
[1645279669306,0.6915406,2740.2,2739.9,0.54751204]
[1645279669708,0.00294309,2740.1,2739.5,0.00461491]
[1645279670508,0.6915406,2740.2,2739.5,0.00256124]
[1645279671008,0.6915406,2740.2,2739.5,0.00461434]
[1645279671009,0.63904124,2740.1,2739.5,0.00461434]
[1645279671211,1.33058184,2740.1,2739.5,0.00461434]
[1645279671910,1.32763909,2740.1,2739.5,0.00256124]
[1645279672153,1.32763909,2740.1,2739.5,0.00461434]
[1645279672154,1.3305818,2740.1,2739.5,0.00461434]
[1645279672953,1.32763909,2740.1,2739.5,0.00256124]
[1645279673155,1.3305818,2740.1,2739.5,0.00461434]
[1645279674157,1.32763909,2740.1,2739.5,0.00256124]
[1645279674355,1.33058184,2740.1,2739.5,0.00461447]
[1645279674954,0.69448335,2740.1,2739.5,0.00461447]
[1645279675356,0.69448335,2740.1,2739.5,0.00256124]
[1645279675357,0.6915406,2740.1,2739.5,0.00256124]
[1645279675554,0.69448336,2740.1,2739.5,0.00461447]
[1645279676610,0.6915406,2740.1,2739.5,0.00256124]
[1645279676813,0.69448336,2740.1,2739.5,0.00461447]
[1645279677809,0.6915406,2740.1,2739.5,0.00256124]
[1645279678009,0.69448335,2740.1,2739.5,0.00461444]
[1645279679012,0.69448335,2740.1,2739.5,0.00256124]
[1645279679013,0.6915406,2740.1,2739.5,0.00256124]
[1645279679212,0.69448335,2740.1,2739.5,0.00461444]
[1645279680154,0.6915406,2740.1,2739.6,0.62695284]
[1645279680558,0.69448335,2740.1,2739.6,0.62695284]
[1645279681357,0.94614758,2740.1,2739.7,1.2827457]
[1645279681556,0.94909037,2740.1,2739.8,1.2827457]
[1645279681757,0.94909037,2740.1,2739.5,0.00461445]
[1645279681961,0.94909037,2740.1,2739.6,1.28248085]
[1645279682257,0.25460698,2740.0,2739.6,1.28248085]
[1645279682457,0.25460698,2739.9,2739.6,1.28248085]
[1645279682664,0.25460698,2739.8,2739.6,1.28248085]
[1645279682960,0.25464016,2739.7,2739.6,1.28248085]
[1645279683158,0.69448339,2740.1,2739.6,1.28248085]
[1645279683159,0.94912422,2740.1,2739.6,1.28248085]
[1645279683423,0.25463827,2740.0,2739.6,1.28248085]
[1645279683624,0.25463827,2739.9,2739.6,1.28248085]
[1645279683824,0.69448339,2740.1,2739.6,1.28248085]
[1645279683825,0.25463827,2739.8,2739.6,1.28248085]
[1645279684024,0.69448335,2740.1,2739.6,1.28248085]
[1645279685024,0.6915406,2740.1,2739.6,1.28248085]
[1645279685224,0.69448339,2740.1,2739.6,1.28248085]
[1645279686225,0.6915406,2740.1,2739.6,1.28248085]
[1645279686426,0.69448339,2740.1,2739.6,1.28248085]
[1645279687026,0.69448339,2740.1,2739.7,0.02520468]
[1645279687269,0.69448339,2740.1,2739.8,1.28248085]
[1645279687459,0.6915406,2740.1,2739.8,1.28248085]
[1645279687659,0.69448344,2740.1,2739.8,1.28248085]
[1645279687861,0.69448344,2740.1,2739.7,0.02520468]
[1645279688060,0.69448344,2740.1,2739.8,1.2821238]
[1645279688262,0.69448344,2740.1,2739.7,0.02520468]
[1645279688561,0.6915406,2740.1,2739.7,0.02520468]
[1645279688766,0.69448348,2740.1,2739.8,1.28210796]
[1645279688965,0.69448348,2740.1,2739.7,0.02520468]
[1645279689362,0.69448348,2740.1,2739.8,1.28183796]
[1645279689563,0.69448348,2740.1,2739.7,0.02520468]
[1645279689767,2.71893725,2740.3,2739.7,0.02520468]
[1645279689768,0.94615207,2740.0,2739.8,1.28209541]
[1645279689965,0.94615207,2740.0,2739.7,0.02520468]
[1645279689966,0.25469683,2739.9,2739.7,0.02520468]
[1645279690166,0.6915406,2740.0,2739.8,1.28208649]
[1645279690364,0.6915406,2740.0,2739.9,1.28213986]
[1645279690570,0.25469683,2740.0,2739.9,1.28189822]
[1645279690768,0.25469683,2740.0,2739.8,1.28177891]
[1645279691012,0.69448348,2740.1,2739.7,0.02520468]
[1645279691013,0.25469683,2739.9,2739.7,0.02520468]
[1645279691612,0.00294288,2740.1,2739.8,1.28159694]
[1645279691813,0.00294288,2740.1,2740.0,0.01411348]
[1645279692016,0.00294288,2740.1,2740.0,1.29571042]
[1645279692211,0.94611631,2740.2,2740.0,0.01411348]
[1645279692416,0.25457571,2740.1,2740.0,0.01411348]
[1645279692811,0.69448351,2740.2,2740.0,1.29552737]
[1645279693011,0.69448351,2740.2,2740.0,0.01411348]
[1645279693414,0.69448351,2740.2,2740.1,1.28137608]
[1645279693415,0.6915406,2740.2,2740.1,1.28137608]
[1645279693613,0.0029429,2740.2,2740.0,0.01411348]
[1645279693812,0.0029429,2740.2,2740.1,1.28134114]
[1645279694012,0.0029429,2740.2,2740.0,0.6562517]
[1645279694213,0.0029429,2740.2,2740.1,1.28125985]
[1645279694414,0.6944835,2740.2,2740.0,0.01411348]
[1645279694663,0.6915406,2740.2,2740.0,0.01411348]
[1645279694862,0.6915406,2740.2,2740.1,1.28090064]
[1645279695071,0.6915406,2740.2,2740.1,1.28060809]
[1645279695072,0.25457571,2740.2,2740.1,1.28060809]
[1645279695566,0.00294288,2740.3,2740.2,0.00108436]
[1645279695767,0.25449016,2740.5,2740.2,0.00108436]
[1645279696168,0.00294288,2740.3,2740.2,1.28169245]
[1645279696467,0.25449016,2740.5,2740.3,0.00197564]
[1645279696667,0.6915406,2740.7,2740.3,1.28258373]
[1645279696668,0.25449016,2740.4,2740.3,1.28258373]
[1645279697277,0.6915406,2740.8,2740.3,1.28258373]
[1645279697470,0.6915406,2740.8,2740.4,1.28060809]
[1645279697772,0.6915406,2740.8,2740.7,0.50643661]
[1645279697972,0.25449016,2740.8,2740.7,0.50643661]
[1645279698168,0.25449016,2740.8,2740.7,1.7870447]
[1645279698416,4.09208883,2741.4,2740.7,1.7870447]
[1645279698417,0.25449016,2741.0,2740.7,1.7870447]
[1645279698612,0.25449016,2740.9,2740.8,1.27478337]
[1645279699013,0.6915406,2741.4,2740.8,1.27478337]
[1645279699214,0.94603076,2741.5,2740.8,1.27478337]
[1645279699412,0.25449016,2741.4,2740.8,1.27478337]
[1645279699615,2.14174607,2741.8,2740.8,1.27478337]
[1645279699616,0.25449016,2741.3,2740.8,1.27478337]
[1645279699811,0.25449016,2741.2,2740.8,1.27478337]
[1645279700010,0.25449016,2741.1,2740.9,3.5]
[1645279700212,0.6915406,2741.6,2741.3,0.69464853]
[1645279700913,0.69485909,2741.6,2741.3,0.69464853]
[1645279701420,0.69485909,2741.6,2740.6,0.1824]
[1645279701421,0.25361956,2741.5,2740.6,0.1824]
[1645279701615,0.6915406,2741.5,2740.7,1.27284613]
[1645279702262,0.0033186,2741.2,2740.8,0.02748865]
[1645279702457,0.0033186,2741.2,2741.0,0.51255558]
[1645279703061,0.25361956,2741.2,2741.0,0.51255558]
[1645279703257,0.25361956,2741.1,2741.0,0.51255558]
[1645279703657,0.00331858,2741.2,2741.0,0.51255558]
[1645279704257,0.6915406,2741.6,2741.0,0.51255558]
[1645279704456,0.00331858,2741.2,2741.0,0.51255558]
[1645279704659,0.00331858,2741.2,2740.8,0.02748865]
[1645279705460,0.6915406,2741.5,2740.8,0.02748865]
[1645279705664,0.6915406,2741.5,2740.8,0.73246891]
[1645279705665,0.00331861,2741.1,2740.8,0.73246891]
[1645279706710,0.25361956,2741.1,2740.8,0.73246891]
[1645279706909,0.25361956,2741.0,2740.8,0.73246891]
[1645279707109,0.25361956,2741.0,2740.8,0.70498026]
[1645279708010,0.6915406,2741.6,2740.8,0.70498026]
[1645279708213,0.00314846,2741.0,2740.8,0.70498026]
[1645279709011,0.25217158,2741.1,2740.8,0.70498026]
[1645279709210,0.25532004,2741.0,2740.8,0.70498026]
[1645279709413,0.00314846,2741.0,2740.8,0.70498026]
[1645279709661,0.00314846,2741.0,2740.8,0.65498026]
[1645279710159,0.2520632,2741.6,2740.8,0.65498026]
[1645279710660,0.00314846,2741.0,2740.8,0.65498026]
[1645279711462,0.2520632,2741.6,2740.8,0.65498026]
[1645279711760,0.00314846,2741.0,2740.8,0.65498026]
[1645279712761,0.2520632,2741.2,2740.8,0.65498026]
[1645279712961,0.00318675,2741.0,2740.8,0.65498026]
[1645279713164,0.25524995,2741.0,2740.8,0.65498026]
[1645279713418,0.00318675,2741.0,2740.8,0.65498026]
[1645279713815,0.25189025,2741.6,2740.8,0.65498026]
[1645279714018,0.00318675,2741.0,2740.9,3.5]
[1645279714219,0.00318675,2741.0,2740.9,1.2663544]
[1645279714418,0.00318675,2741.0,2740.9,13.5361544]
[1645279715022,0.77720073,2742.0,2740.9,2.4061544]
[1645279715218,0.77720073,2742.0,2741.3,0.71444511]
[1645279715219,0.25174925,2741.9,2741.3,0.71444511]
[1645279715423,0.25174925,2741.9,2741.4,3.5]
[1645279715624,0.25174925,2741.8,2741.3,12.14444511]
[1645279715820,0.00724217,2742.3,2741.4,0.08611616]
[1645279716027,0.25158743,2742.2,2741.4,0.08611616]
[1645279716219,0.25158743,2742.1,2741.4,0.08611616]
[1645279716420,0.25158743,2742.4,2741.4,0.08611616]
[1645279716618,0.00317792,2742.0,2741.9,0.71516174]
[1645279716819,0.00317792,2742.0,2741.9,0.48094594]
[1645279717266,0.25476535,2742.0,2741.9,0.48094594]
[1645279717467,0.25158743,2742.0,2741.9,0.48094594]
[1645279718265,0.0031779,2742.1,2741.9,0.48094594]
[1645279718672,0.24693808,2742.6,2741.9,0.48094594]
[1645279718868,0.00317789,2742.1,2741.9,0.48094594]
[1645279719572,0.00317789,2742.1,2741.7,1.1758]
[1645279719771,0.00724217,2742.2,2741.7,1.1758]
[1645279719971,0.24693808,2742.1,2741.7,1.1758]
[1645279720170,0.00317983,2742.1,2741.7,1.1758]
[1645279720369,0.00317983,2742.1,2741.5,2.549]
[1645279720772,0.00317983,2742.1,2741.6,0.54813658]
[1645279721011,0.24693808,2742.2,2741.6,0.54813658]
[1645279721414,0.00317987,2741.9,2741.6,0.54813658]
[1645279722209,0.24693808,2742.2,2741.6,0.54813658]
[1645279722609,0.00317988,2741.9,2741.6,0.54813658]
[1645279723009,0.00317988,2741.9,2741.5,2.549]
[1645279723411,0.24693808,2742.2,2741.5,2.549]
[1645279723614,0.00317946,2741.8,2741.5,2.549]
[1645279723918,0.00317946,2741.8,2741.5,2.249]
[1645279724114,0.66420407,2741.7,2741.3,1.1681]
[1645279724313,0.66420407,2741.7,2741.1,3.0635]
[1645279724314,0.24693808,2741.6,2741.1,3.0635]
[1645279724960,0.00317954,2741.5,2740.9,0.56771445]
[1645279725861,0.24693808,2741.6,2740.9,0.56771445]
[1645279726161,0.00317957,2741.3,2740.7,1.5494]
[1645279727060,0.24693808,2741.6,2740.7,1.5494]
[1645279727363,0.0031797,2741.2,2740.8,1.24147292]
[1645279728411,0.24693808,2741.6,2740.8,1.24147292]
[1645279728617,0.00317972,2741.1,2740.8,1.24147292]
[1645279729010,0.00317972,2741.1,2740.8,0.54260964]
[1645279729419,0.24693808,2741.6,2740.3,0.00197564]
[1645279729420,0.91252,2741.3,2740.3,0.00197564]
[1645279729614,3.65021,2741.5,2740.3,0.00197564]
[1645279729915,0.00317973,2741.1,2740.3,0.00197564]
[1645279730121,0.64102455,2740.9,2740.3,0.00197564]
[1645279730915,0.00317978,2740.7,2740.3,0.00197564]
[1645279731918,0.24719696,2740.8,2740.3,0.00197564]
[1645279732182,0.00317981,2740.6,2740.3,0.00197564]
[1645279733077,0.24719696,2740.8,2740.3,0.00197564]
[1645279733275,0.50880485,2740.4,2740.3,0.00197564]
[1645279733585,0.75600181,2740.4,2740.3,0.00197564]
[1645279734075,1.75600181,2740.4,2740.3,0.00197564]
[1645279734281,4.25600181,2740.4,2740.3,0.00197564]
[1645279734481,5.00880485,2740.4,2740.3,0.00197564]
[1645279734676,7.08213342,2740.4,2740.3,0.00197564]
[1645279735083,1.75627342,2740.4,2740.3,0.00197564]
[1645279735677,0.75627342,2740.4,2740.3,0.00197564]
[1645279736724,1.75627342,2740.4,2740.3,0.00197564]
[1645279736921,0.75627342,2740.4,2740.3,0.00197564]
[1645279737719,0.75627342,2740.4,2740.3,0.03500243]
[1645279737919,0.65318128,2739.9,2739.4,5.38774645]
[1645279738122,6.0,2740.3,2739.4,5.38774645]
[1645279738123,6.0,2740.3,2739.6,0.00205915]
[1645279738320,0.24773462,2740.2,2739.6,1.27538101]
[1645279738521,0.24773462,2740.2,2739.7,1.27077361]
[1645279738720,0.25066117,2740.5,2739.7,1.27077361]
[1645279738920,0.24772176,2740.4,2739.8,1.27296787]
[1645279739119,0.24772176,2740.5,2739.6,0.00254825]
[1645279739322,0.54153432,2740.3,2739.7,0.61104325]
[1645279739670,0.54153432,2740.3,2739.8,1.27314935]
[1645279740261,0.54153432,2740.3,2739.6,0.00254825]
[1645279740463,0.54153432,2740.3,2739.6,1.27204956]
[1645279740662,3.22582764,2740.8,2739.6,1.27204956]
[1645279740860,0.24776196,2740.7,2739.7,0.00144849]
[1645279741062,0.24776196,2740.6,2739.7,0.00144849]
[1645279741363,0.24776196,2740.5,2739.7,0.00144849]
[1645279741561,0.24776196,2740.4,2739.7,0.00144849]
[1645279741860,0.24776196,2740.3,2739.7,0.51897522]
[1645279742063,0.24776196,2740.3,2739.8,1.27204956]
[1645279742963,0.00331887,2740.2,2739.8,4.77204956]
[1645279743164,4.42513702,2741.1,2739.9,0.1824]
[1645279743412,4.42513702,2741.1,2740.0,1.27060107]
[1645279743413,0.2476851,2741.0,2740.0,1.27060107]
[1645279743611,0.2476851,2741.0,2740.1,3.5]
[1645279743813,0.6915406,2741.3,2740.2,1.27060107]
[1645279743814,0.2476851,2740.9,2740.2,1.27060107]
[1645279744014,0.2476851,2740.8,2740.4,0.67158681]
[1645279744219,0.2476851,2740.7,2740.4,0.67158681]
[1645279744515,5.6032406,2741.4,2740.4,0.67158681]
[1645279744717,0.24762924,2741.3,2740.4,0.67158681]
[1645279744922,0.24762924,2741.3,2740.5,3.5]
[1645279745317,0.24762924,2741.3,2740.9,0.69209753]
[1645279745515,0.24762924,2741.3,2740.6,1.91192096]
[1645279745715,0.24762924,2741.3,2740.7,3.5]
[1645279746918,0.24762924,2741.3,2740.7,4.1476719]
[1645279747165,0.24762924,2741.3,2740.5,3.8943]
[1645279747470,0.24762924,2741.3,2740.6,1.26980317]
[1645279747667,0.24762924,2741.3,2740.5,0.3943]
[1645279747869,0.00331864,2741.0,2740.5,3.7119]
[1645279748164,0.00331864,2741.0,2740.5,4.34050443]
[1645279748367,0.25094788,2741.0,2740.5,4.34050443]
[1645279748665,0.24762924,2741.0,2740.5,4.34050443]
[1645279748867,0.00315977,2740.9,2740.5,4.34050443]
[1645279749668,0.25078901,2740.9,2740.5,4.34050443]
[1645279749868,1.9797,2741.4,2740.5,4.34050443]
[1645279750071,1.9797,2741.4,2740.5,4.42662059]
[1645279750270,0.00315978,2740.8,2740.5,4.42662059]
[1645279750469,0.00315978,2740.8,2740.6,1.2695426]
[1645279750915,0.00315978,2740.8,2740.6,1.35565876]
[1645279751117,0.24751122,2741.3,2740.6,0.08611616]
[1645279751317,0.00315978,2740.8,2740.6,0.08611616]
[1645279752116,2.54574071,2741.4,2740.6,0.08611616]
[1645279752517,0.00331869,2740.8,2740.6,0.08611616]
[1645279753618,2.54574071,2741.4,2740.6,0.08611616]
[1645279754520,2.54574071,2741.4,2740.5,4.34050443]
[1645279755159,2.54574071,2741.4,2740.5,4.52290443]
[1645279756165,0.00331862,2741.1,2740.5,4.52290443]
[1645279756560,0.00331862,2741.1,2740.5,1.02290443]
[1645279757158,2.54574071,2741.4,2740.5,0.84050443]
[1645279757359,0.00331867,2740.9,2740.5,0.84050443]
[1645279758161,0.00331867,2740.9,2740.5,0.2119]
[1645279758417,5.67043975,2741.4,2740.5,0.2119]
[1645279758613,0.00331857,2740.9,2740.5,0.14444478]
[1645279759316,0.65145417,2740.6,2740.5,0.14444478]
[1645279759517,3.5,2740.6,2740.5,0.14444478]
[1645279760317,0.60655028,2740.7,2740.5,0.14444478]
[1645279760526,0.73835028,2740.7,2740.5,0.14444478]
[1645279761116,0.66200061,2740.7,2740.5,0.14444478]
[1645279762161,0.53020061,2740.7,2740.5,0.14444478]
[1645279762569,3.5,2740.6,2740.5,0.14444478]
[1645279765168,1.53020061,2740.7,2740.5,0.14444478]
[1645279765772,3.5,2740.6,2740.5,0.14444478]
[1645279766416,3.5,2740.6,2740.0,0.00202016]
[1645279766417,0.9128,2740.5,2740.0,0.00202016]
[1645279766612,3.5,2740.4,2740.0,0.00202016]
[1645279766813,3.5,2740.4,2739.6,0.00144849]
[1645279767012,3.5,2740.4,2740.0,0.00207858]
[1645279767414,0.61593047,2740.2,2740.0,0.00207858]
[1645279768012,0.61593047,2740.2,2739.6,0.00144849]
[1645279768414,0.61593047,2740.2,2740.0,0.00207864]
[1645279769213,4.11593047,2740.2,2739.6,0.00144849]
[1645279769416,4.11593047,2740.2,2740.0,0.00207864]
[1645279769868,0.61593047,2740.2,2740.0,0.00207864]
[1645279770075,1.52888047,2740.2,2740.0,0.00207864]
[1645279770270,2.52888047,2740.2,2740.0,0.00207864]
[1645279770469,2.52888047,2740.2,2739.6,0.00144849]
[1645279770673,2.52888047,2740.2,2740.0,0.00206549]
[1645279771075,0.91314,2740.1,2740.0,0.00206549]
[1645279771672,2.73934,2740.1,2739.6,0.00144849]
[1645279771875,3.6524388,2740.1,2739.9,0.00206553]
[1645279772278,3.74407518,2740.0,2739.9,0.00206553]
[1645279772875,3.74407518,2740.0,2739.6,0.00144849]
[1645279773074,0.24407518,2739.9,2739.8,0.00206561]
[1645279773517,0.24407518,2740.0,2739.8,0.00206561]
[1645279773723,0.24407518,2739.9,2739.8,0.00206561]
[1645279773917,0.60562462,2739.6,2739.4,1.88919494]
[1645279774119,0.60562462,2739.6,2739.4,1.88774645]
[1645279774318,0.60562462,2739.6,2739.4,1.8960221]
[1645279774520,0.60562462,2739.6,2739.5,1.2770628]
[1645279774719,1.08706265,2740.3,2739.5,1.2770628]
[1645279774919,0.24395986,2740.2,2739.5,1.27851129]
[1645279775121,0.24395986,2740.2,2739.6,0.00144849]
[1645279775518,0.24395986,2740.2,2739.8,0.0020686]
[1645279776324,0.24395986,2740.2,2739.7,1.27778012]
[1645279776521,0.24395986,2740.2,2739.7,0.00144849]
[1645279776824,0.24395986,2740.1,2739.9,0.00206853]
[1645279777021,0.24395986,2740.0,2739.9,0.00206853]
[1645279777465,0.24395986,2740.3,2739.9,0.00206853]
[1645279777664,0.56367479,2740.1,2739.9,0.00206853]
[1645279777865,0.24395986,2740.0,2739.5,0.00144849]
[1645279778066,0.24395986,2740.0,2739.8,0.0020679]
[1645279778666,0.24395986,2740.0,2739.8,0.0012679]
[1645279778872,0.24395986,2740.0,2739.5,0.00144849]
[1645279778873,3.74395986,2740.0,2739.5,0.00144849]
[1645279779069,0.24395986,2739.9,2739.8,0.00206794]
[1645279779966,3.74395986,2739.9,2739.5,0.00144849]
[1645279780174,2.98325986,2739.8,2739.5,0.00144849]
[1645279780371,3.74395986,2739.7,2739.4,1.88774645]
[1645279780671,0.24395986,2739.6,2739.4,1.88774645]
[1645279780921,3.7393,2739.8,2739.4,1.88774645]
[1645279780922,0.24395986,2739.5,2739.4,1.88774645]
[1645279781317,0.86977298,2739.5,2739.4,1.88774645]
[1645279781916,1.78291298,2739.5,2739.4,1.88774645]
[1645279782521,1.78291298,2739.5,2739.1,0.00144849]
[1645279782522,9.41321,2739.4,2739.1,0.00144849]
[1645279782721,9.41321,2739.4,2738.5,7.49]
[1645279782722,8.5,2739.4,2739.3,0.00206642]
[1645279782919,12.83915743,2739.4,2739.3,6.642e-05]
[1645279783121,16.48905803,2739.4,2739.3,6.642e-05]
[1645279783319,16.55975522,2739.4,2739.3,6.642e-05]
[1645279783522,0.61784137,2738.3,2738.2,0.00253663]
[1645279783722,0.61784137,2738.3,2737.9,7.49253663]
[1645279783919,0.61784137,2738.3,2737.9,7.39]
[1645279784520,0.61784137,2738.3,2738.0,1.28581662]
[1645279784769,0.61784137,2738.3,2737.9,0.00253663]
[1645279784972,0.61784137,2738.3,2737.7,0.00253663]
[1645279785173,0.23273957,2738.2,2737.7,0.00253663]
[1645279785372,0.23273957,2738.2,2737.6,7.49250661]
[1645279785373,8.5,2738.1,2737.6,6.19804324]
[1645279785569,0.23273957,2738.0,2737.6,0.00503176]
[1645279785771,10.32742,2738.1,2737.6,0.00250661]
[1645279785969,10.32742,2738.1,2737.3,0.00252515]
[1645279785970,10.30742,2738.1,2737.3,0.00252515]
[1645279786167,1.80742,2738.1,2737.4,0.59654231]
[1645279786367,1.80742,2738.1,2737.5,0.00252515]
[1645279787271,1.80742,2738.1,2737.3,0.00252515]
[1645279787469,1.80742,2738.1,2737.7,0.00206809]
[1645279787871,3.35884137,2738.3,2737.7,0.00206809]
[1645279787872,1.53144137,2738.3,2737.7,0.00206809]
[1645279788172,0.61784137,2738.3,2737.7,0.00206809]
[1645279788415,0.61784137,2738.3,2737.6,0.00252515]
[1645279788917,0.61784137,2738.3,2737.9,0.00220571]
[1645279789618,1.53141437,2738.3,2737.6,0.00252515]
[1645279789813,1.53141437,2738.3,2737.3,0.00252515]
[1645279790017,1.53141437,2738.3,2738.0,0.00220563]
[1645279790018,4.11784137,2738.3,2738.0,0.00220563]
[1645279790323,0.91363,2738.1,2738.0,0.00220563]
[1645279790716,0.91363,2738.1,2737.6,0.00882386]
[1645279790920,0.55527856,2737.5,2737.3,0.00252515]
[1645279791118,0.55527856,2737.5,2737.2,7.49]
[1645279792018,1.46911856,2737.5,2737.2,7.49]
[1645279792275,1.46911856,2737.5,2737.2,7.49201147]
[1645279792470,2.38295856,2737.5,2737.2,0.00201147]
[1645279792865,3.38295856,2737.5,2737.2,0.00201147]
[1645279793164,0.91396,2737.4,2736.7,0.00252515]
[1645279793367,1.91396,2737.4,2736.7,0.00252515]
[1645279793565,1.91396,2737.4,2736.8,0.00804709]
[1645279793566,1.827916,2737.2,2736.8,0.00804709]
[1645279794264,0.55861184,2736.9,2736.8,0.00804709]
[1645279794465,0.55861184,2736.9,2736.7,0.00252515]
[1645279794664,0.55861184,2736.9,2736.6,7.49]
[1645279794873,0.55861184,2736.9,2736.5,0.00804812]
[1645279794874,2.07918212,2736.9,2736.5,0.00804812]
[1645279795070,3.90748212,2736.9,2736.5,0.00804812]
[1645279795465,4.90748212,2736.9,2736.5,0.00804812]
[1645279795668,4.90748212,2736.9,2736.0,0.00252515]
[1645279795669,0.91408,2736.8,2736.0,0.00252515]
[1645279795918,0.52324983,2736.4,2736.0,0.00252515]
[1645279796118,0.91408,2736.8,2736.0,0.00252515]
[1645279796322,0.00222764,2737.0,2735.8,0.00252515]
[1645279796919,0.00222764,2737.0,2735.8,1.27971322]
[1645279797124,0.1318,2737.4,2736.9,0.68231863]
[1645279797322,0.61526838,2737.6,2736.9,0.00252515]
[1645279797523,0.61526838,2737.6,2736.4,7.49]
[1645279797720,0.61526838,2737.6,2736.5,0.00252515]
[1645279798323,0.51487161,2737.1,2736.5,0.00252515]
[1645279798822,0.70539745,2737.3,2737.1,0.35874866]
[1645279799022,0.70539745,2737.3,2737.1,0.36127381]
[1645279799221,0.70539745,2737.3,2737.1,0.35874866]
[1645279799671,5.4433,2737.8,2737.1,0.36122406]
[1645279799862,1.9433,2737.8,2737.1,0.36374921]
[1645279800261,2.85705,2737.8,2737.1,0.36374921]
[1645279800465,0.1318,2737.7,2737.1,0.36127381]
[1645279800669,0.63720104,2737.8,2737.2,0.00252515]
[1645279800867,0.63720104,2737.8,2737.3,0.00247518]
[1645279801663,0.63720104,2737.8,2737.2,0.00252515]
[1645279802065,0.63720104,2737.8,2737.4,0.00247509]
[1645279802363,0.2986,2738.1,2737.4,0.00247509]
[1645279802965,0.2986,2738.1,2737.2,0.00252515]
[1645279803163,0.2986,2738.1,2737.6,0.00247491]
[1645279803417,0.70884673,2737.9,2737.6,0.00247491]
[1645279804019,0.70884673,2737.9,2737.2,0.00252515]
[1645279804419,0.70884673,2737.9,2737.6,0.00247491]
[1645279805225,0.70884673,2737.9,2737.2,0.00252515]
[1645279805623,0.70884673,2737.9,2737.6,0.00247491]
[1645279806222,4.20884673,2737.9,2737.6,0.00247491]
[1645279806421,4.20884673,2737.9,2737.2,0.01242626]
[1645279806422,1.0,2737.8,2737.2,0.00252515]
[1645279806620,3.5,2737.7,2737.2,0.00252515]
[1645279806820,3.5,2737.7,2737.6,0.00247491]
[1645279807020,1.0,2737.8,2737.6,0.00247491]
[1645279807021,4.5,2737.8,2737.6,0.00247491]
[1645279807277,3.5,2737.7,2737.6,0.00247491]
[1645279807471,2.05853609,2737.8,2737.6,0.00247491]
[1645279807472,1.0,2737.8,2737.6,0.00247491]
[1645279807672,0.70884673,2737.9,2737.2,0.00252515]
[1645279807877,0.5385199,2737.4,2737.2,0.00252515]
[1645279808170,5.10655028,2738.1,2737.1,0.35874866]
[1645279808171,3.5,2738.0,2737.1,0.36865013]
[1645279808370,3.5,2738.0,2737.2,0.00252515]
[1645279808371,1.91371,2737.9,2737.2,0.00252515]
[1645279808971,2.82741,2737.9,2737.2,0.00252515]
[1645279809170,2.82741,2737.9,2737.4,0.00247509]
[1645279809370,0.53198488,2737.8,2737.4,0.00247509]
[1645279809970,0.9137717,2737.7,2737.2,0.00252515]
[1645279810378,0.53869161,2737.3,2737.2,0.00252515]
[1645279810573,0.53869161,2737.3,2737.1,0.36865031]
[1645279811222,0.53869161,2737.3,2737.1,0.35874866]
[1645279811425,1.82741,2737.9,2737.1,0.35874866]
[1645279811725,1.82741,2737.9,2737.2,0.00252515]
[1645279812229,1.95921,2737.9,2737.2,0.00252515]
[1645279812423,0.1318,2737.9,2737.2,0.00252515]
[1645279812625,0.60014194,2737.5,2737.2,0.00252515]
[1645279812824,0.60014194,2737.5,2737.1,0.35874866]
[1645279815069,0.60014194,2737.5,2737.2,0.00244437]
[1645279815968,0.60014194,2737.5,2737.1,0.35874866]
[1645279816368,0.60014194,2737.5,2737.2,0.00244433]
[1645279816570,3.6318,2738.0,2737.2,0.00244433]
[1645279816773,5.0,2737.7,2737.2,0.00496948]
[1645279816970,1.28713079,2737.6,2737.2,0.00496948]
[1645279817173,2.12792,2737.4,2737.2,0.00496948]
[1645279817371,0.60655028,2737.3,2737.1,0.35874866]
[1645279817671,0.56374374,2737.2,2737.1,0.35874866]
[1645279818732,1.10571005,2737.2,2737.1,0.35874866]
[1645279818934,4.60571005,2737.2,2737.1,0.35874866]
[1645279819132,4.30571005,2737.2,2737.1,0.35874866]
[1645279819332,5.06374374,2737.2,2737.1,0.35874866]